[Event "Swedish Chess Championship 2019: Minior-SM"]
[Site "Stiga Sports Arena, Arenatorget 1, Eskilstuna, Sweden, Sweden"]
[Date "2019.07.09"]
[Round "3.3"]
[White "Seo, Jung Hyun"]
[Black "Tran, Alva Ling"]
[Result "0-1"]
[TimeControl "90 minutes for 40 moves + 30 minutes for the rest of the game + 30 seconds per move from move one"]
[WhiteFideId "1735667"]
[BlackFideId "1753223"]
[WhiteElo "1575"]
[BlackElo "1712"]

1. e4 {[%clk 01:31:00]} {[%emt 00:07:33]} c5 {[%clk 01:30:51]} {[%emt
00:00:10]} 2. Nf3 {[%clk 01:31:26]} {[%emt 00:00:03]} e6 {[%clk 01:31:12]}
{[%emt 00:00:09]} 3. d4 {[%clk 01:31:48]} {[%emt 00:00:08]} cxd4 {[%clk
01:31:35]} {[%emt 00:00:07]} 4. Nxd4 {[%clk 01:32:15]} {[%emt 00:00:03]} a6
{[%clk 01:31:53]} {[%emt 00:00:12]} 5. c4 {[%clk 01:32:42]} {[%emt 00:00:02]}
Nf6 {[%clk 01:31:56]} {[%emt 00:00:27]} 6. Nc3 {[%clk 01:33:10]} {[%emt
00:00:03]} Bb4 {[%clk 01:31:08]} {[%emt 00:01:17]} 7. Qd3 {[%clk 01:33:35]}
{[%emt 00:00:04]} d6 {[%clk 01:28:29]} {[%emt 00:03:10]} 8. Nc2 {[%clk
01:33:54]} {[%emt 00:00:11]} Ba5 {[%clk 01:28:50]} {[%emt 00:00:09]} 9. b4
{[%clk 01:33:16]} {[%emt 00:01:08]} Bc7 {[%clk 01:29:10]} {[%emt 00:00:10]} 10.
Be3 {[%clk 01:33:00]} {[%emt 00:00:47]} Nc6 {[%clk 01:28:14]} {[%emt 00:01:25]}
11. Be2 {[%clk 01:31:43]} {[%emt 00:01:47]} O-O {[%clk 01:26:51]} {[%emt
00:01:53]} 12. a3 {[%clk 01:31:11]} {[%emt 00:01:02]} Ne5 {[%clk 01:19:31]}
{[%emt 00:07:50]} 13. Qd2 {[%clk 01:30:33]} {[%emt 00:01:09]} b6 {[%clk
01:15:41]} {[%emt 00:04:20]} 14. f3 {[%clk 01:28:06]} {[%emt 00:02:56]} Bb7
{[%clk 01:13:09]} {[%emt 00:03:03]} 15. b5 {[%clk 01:16:32]} {[%emt 00:12:04]}
Nfd7 {[%clk 00:58:32]} {[%emt 00:15:07]} 16. bxa6 {[%clk 01:15:05]} {[%emt
00:01:58]} Bxa6 {[%clk 00:58:24]} {[%emt 00:00:38]} 17. Qd4 {[%clk 00:44:00]}
{[%emt 00:31:34]} Nc6 {[%clk 00:40:43]} {[%emt 00:18:12]} 18. Qd2 {[%clk
00:43:13]} {[%emt 00:01:16]} Na5 {[%clk 00:36:09]} {[%emt 00:05:03]} 19. Nd4
{[%clk 00:40:41]} {[%emt 00:03:02]} Ne5 {[%clk 00:22:47]} {[%emt 00:13:53]} 20.
Bg5 {[%clk 00:39:04]} {[%emt 00:02:07]} Qd7 {[%clk 00:22:15]} {[%emt 00:01:02]}
21. Ncb5 {[%clk 00:38:15]} {[%emt 00:01:19]} Nexc4 {[%clk 00:19:04]} {[%emt
00:03:41]} 22. Qb4 {[%clk 00:35:15]} {[%emt 00:03:30]} d5 {[%clk 00:18:22]}
{[%emt 00:01:11]} 23. Nxc7 {[%clk 00:32:15]} {[%emt 00:03:29]} Qxc7 {[%clk
00:18:35]} {[%emt 00:00:17]} 24. O-O {[%clk 00:32:30]} {[%emt 00:00:16]} Qe5
{[%clk 00:18:13]} {[%emt 00:00:53]} 25. Bh4 {[%emt 00:02:50]} Qxd4+ {[%clk
00:17:22]} {[%emt 00:01:19]} 26. Bf2 {[%clk 00:30:35]} {[%emt 00:00:06]} Qd2
{[%clk 00:14:55]} {[%emt 00:02:57]} 27. Bxc4 {[%clk 00:29:49]} {[%emt
00:01:16]} Nxc4 {[%clk 00:14:30]} {[%emt 00:00:55]} 28. Qe7 {[%clk 00:29:16]}
{[%emt 00:01:03]} Rfe8 {[%clk 00:12:27]} {[%emt 00:02:33]} 29. Qh4 {[%clk
00:29:38]} {[%emt 00:00:08]} Rad8 {[%clk 00:10:17]} {[%emt 00:02:41]} 30. Rfd1
{[%clk 00:29:48]} {[%emt 00:00:19]} Qa5 {[%clk 00:10:30]} {[%emt 00:00:15]} 31.
exd5 {[%clk 00:30:10]} {[%emt 00:00:10]} Rxd5 {[%clk 00:10:20]} {[%emt
00:00:40]} 32. Bd4 {[%clk 00:30:09]} {[%emt 00:00:31]} e5 {[%clk 00:06:50]}
{[%emt 00:04:01]} 33. Re1 {[%clk 00:29:14]} {[%emt 00:01:25]} f6 {[%clk
00:05:36]} {[%emt 00:01:44]} 34. Rad1 {[%clk 00:29:01]} {[%emt 00:00:43]} Red8
{[%clk 00:05:01]} {[%emt 00:01:05]} 35. Qh5 {[%clk 00:28:56]} {[%emt 00:00:35]}
Qb5 {[%clk 00:03:13]} {[%emt 00:02:18]} 36. Rb1 {[%clk 00:28:29]} {[%emt
00:00:57]} Qc6 {[%clk 00:03:14]} {[%emt 00:00:29]} 37. Bf2 {[%clk 00:28:35]}
{[%emt 00:00:23]} b5 {[%clk 00:02:21]} {[%emt 00:01:24]} 38. Kh1 {[%clk
00:28:24]} {[%emt 00:00:42]} Rd2 {[%clk 00:01:55]} {[%emt 00:00:56]} 39. Bg3
{[%clk 00:28:16]} {[%emt 00:00:37]} Qe8 {[%clk 00:01:34]} {[%emt 00:00:51]} 40.
Qg4 {[%clk 00:28:19]} {[%emt 00:00:27]} R8d4 {[%clk 00:01:26]} {[%emt
00:00:38]} 41. Qf5 {[%clk 00:28:13]} {[%emt 00:00:36]} Qd7 {[%clk 00:00:42]}
{[%emt 00:01:14]} 42. Qh5 {[%clk 00:28:10]} {[%emt 00:00:33]} Rd1 {[%clk
00:28:40]} {[%emt 00:02:32]} 43. f4 {[%clk 00:58:13]} {[%emt 00:00:27]} Rxb1
{[%clk 00:25:28]} {[%emt 00:03:42]} 44. Rxb1 {[%clk 00:58:28]} {[%emt
00:00:15]} exf4 {[%clk 00:24:08]} {[%emt 00:01:50]} 45. Bf2 {[%clk 00:57:55]}
{[%emt 00:01:03]} Ne3 {[%clk 00:22:11]} {[%emt 00:02:27]} 46. Bxe3 {[%clk
00:57:04]} {[%emt 00:01:20]} fxe3 {[%clk 00:22:32]} {[%emt 00:00:09]} 47. Qf3
{[%clk 00:57:20]} {[%emt 00:00:14]} Bb7 {[%clk 00:21:58]} {[%emt 00:01:04]} 48.
Qf1 {[%clk 00:56:11]} {[%emt 00:01:39]} Rd2 {[%clk 00:21:13]} {[%emt 00:01:16]}
49. Qe1 {[%clk 00:56:15]} {[%emt 00:00:26]} Qg4 {[%clk 00:19:50]} {[%emt
00:01:52]} 50. Qf1 {[%clk 00:55:44]} {[%emt 00:01:01]} Bxg2+ {[%clk 00:20:08]}
{[%emt 00:00:12]} 51. Kg1 {[%clk 00:56:09]} {[%emt 00:00:05]} 0-1

[Event "Swedish Chess Championship 2019: Minior-SM"]
[Site "Stiga Sports Arena, Arenatorget 1, Eskilstuna, Sweden, Sweden"]
[Date "2019.07.09"]
[Round "3.4"]
[White "Enholm, Herman"]
[Black "Gerdes, Sebastian"]
[Result "1-0"]
[TimeControl "90 minutes for 40 moves + 30 minutes for the rest of the game + 30 seconds per move from move one"]
[WhiteFideId "1744500"]
[BlackFideId "1745697"]
[WhiteElo "1695"]
[BlackElo "1529"]

1. d4 {[%clk 01:30:50]} {[%emt 00:00:10]} d5 {[%clk 01:30:45]} {[%emt
00:00:16]} 2. c4 {[%clk 01:31:08]} {[%emt 00:00:11]} c6 {[%clk 01:31:12]}
{[%emt 00:00:04]} 3. Nf3 {[%clk 01:31:04]} {[%emt 00:00:33]} Nf6 {[%clk
01:31:14]} {[%emt 00:00:29]} 4. e3 {[%clk 01:30:55]} {[%emt 00:00:39]} Nbd7
{[%clk 01:30:57]} {[%emt 00:00:47]} 5. Nc3 {[%clk 01:30:14]} {[%emt 00:01:11]}
e6 {[%clk 01:30:13]} {[%emt 00:01:14]} 6. cxd5 {[%clk 01:28:20]} {[%emt
00:02:24]} cxd5 {[%clk 01:29:50]} {[%emt 00:00:53]} 7. Bd3 {[%clk 01:28:05]}
{[%emt 00:00:45]} b6 {[%clk 01:27:35]} {[%emt 00:02:46]} 8. Bd2 {[%clk
01:24:15]} {[%emt 00:04:19]} Bb7 {[%clk 01:24:56]} {[%emt 00:03:09]} 9. Rc1
{[%clk 01:23:14]} {[%emt 00:01:31]} Be7 {[%clk 01:24:06]} {[%emt 00:01:21]} 10.
O-O {[%clk 01:14:22]} {[%emt 00:09:22]} O-O {[%clk 01:22:35]} {[%emt 00:01:59]}
11. Qc2 {[%clk 01:11:37]} {[%emt 00:03:15]} Rc8 {[%clk 01:20:37]} {[%emt
00:02:30]} 12. Ne5 {[%clk 01:09:39]} {[%emt 00:02:27]} h6 {[%clk 01:16:16]}
{[%emt 00:04:51]} 13. f4 {[%clk 01:06:34]} {[%emt 00:03:34]} Ne4 {[%clk
01:06:57]} {[%emt 00:09:49]} 14. Bxe4 {[%clk 01:03:50]} {[%emt 00:03:14]} dxe4
{[%clk 01:07:16]} {[%emt 00:00:11]} 15. Qd1 {[%clk 01:01:07]} {[%emt 00:03:12]}
Nf6 {[%clk 01:05:35]} {[%emt 00:02:12]} 16. g4 {[%clk 00:53:40]} {[%emt
00:07:57]} Nd5 {[%clk 01:01:21]} {[%emt 00:04:45]} 17. Nxd5 {[%emt 00:09:34]}
exd5 {[%clk 01:00:51]} {[%emt 00:00:01]} 18. Qe2 {[%clk 00:44:00]} {[%emt
00:02:03]} Qe8 {[%clk 00:59:48]} {[%emt 00:01:33]} 19. Rxc8 {[%clk 00:40:35]}
{[%emt 00:03:55]} Bxc8 {[%clk 00:59:20]} {[%emt 00:00:59]} 20. Rc1 {[%clk
00:38:45]} {[%emt 00:02:19]} Bb7 {[%clk 00:59:37]} {[%emt 00:00:14]} 21. Rc7
{[%clk 00:36:55]} {[%emt 00:02:20]} Bc8 {[%clk 00:57:09]} {[%emt 00:02:58]} 22.
Rxa7 {[%clk 00:28:15]} {[%emt 00:09:10]} Bd6 {[%clk 00:54:11]} {[%emt
00:03:28]} 23. f5 {[%clk 00:19:17]} {[%emt 00:09:28]} Bxe5 {[%clk 00:50:42]}
{[%emt 00:04:00]} 24. dxe5 {[%clk 00:19:30]} {[%emt 00:00:16]} Qxe5 {[%clk
00:51:06]} {[%emt 00:00:06]} 25. Bc3 {[%clk 00:18:39]} {[%emt 00:01:21]} Qb8
{[%clk 00:51:32]} {[%emt 00:00:05]} 26. Ra4 {[%clk 00:17:17]} {[%emt 00:01:51]}
b5 {[%clk 00:49:44]} {[%emt 00:02:19]} 27. Rb4 {[%clk 00:17:03]} {[%emt
00:00:44]} Bd7 {[%clk 00:49:31]} {[%emt 00:00:43]} 28. f6 {[%clk 00:15:38]}
{[%emt 00:01:54]} g6 {[%clk 00:49:27]} {[%emt 00:00:35]} 29. Rd4 {[%clk
00:12:04]} {[%emt 00:04:04]} Bc6 {[%clk 00:49:22]} {[%emt 00:00:35]} 30. Rd1
{[%clk 00:11:12]} {[%emt 00:01:22]} b4 {[%clk 00:44:35]} {[%emt 00:05:18]} 31.
Bd4 {[%clk 00:11:11]} {[%emt 00:00:30]} Rc8 {[%clk 00:42:40]} {[%emt 00:02:26]}
32. Rc1 {[%clk 00:10:12]} {[%emt 00:01:28]} Bd7 {[%clk 00:41:47]} {[%emt
00:01:24]} 33. Rxc8+ {[%clk 00:09:50]} {[%emt 00:00:52]} Qxc8 {[%clk 00:42:12]}
{[%emt 00:00:05]} 34. h3 {[%clk 00:09:50]} {[%emt 00:00:29]} Qa8 {[%clk
00:35:49]} {[%emt 00:06:53]} 35. Qh2 {[%clk 00:07:35]} {[%emt 00:02:45]} Qc8
{[%clk 00:33:58]} {[%emt 00:02:21]} 36. Qd2 {[%clk 00:03:19]} {[%emt 00:04:46]}
Bxg4 {[%clk 00:29:22]} {[%emt 00:05:06]} 37. hxg4 {[%clk 00:03:23]} {[%emt
00:00:26]} Qxg4+ {[%clk 00:29:46]} {[%emt 00:00:06]} 38. Kf1 {[%clk 00:02:52]}
{[%emt 00:01:00]} Qf3+ {[%clk 00:30:08]} {[%emt 00:00:09]} 39. Qf2 {[%clk
00:02:49]} {[%emt 00:00:32]} Qd1+ {[%clk 00:30:21]} {[%emt 00:00:17]} 40. Kg2
{[%clk 00:02:57]} {[%emt 00:00:21]} Qg4+ {[%clk 00:30:42]} {[%emt 00:00:11]} 41.
Kh2 {[%clk 00:02:57]} {[%emt 00:00:28]} Qh5+ {[%clk 00:30:55]} {[%emt
00:00:18]} 42. Kg1 {[%clk 00:02:33]} {[%emt 00:00:54]} Qg4+ {[%clk 00:31:12]}
{[%emt 00:00:14]} 43. Qg2 {[%clk 00:02:00]} {[%emt 00:01:02]} Qd1+ {[%clk
00:31:34]} {[%emt 00:00:08]} 44. Kh2 {[%clk 00:01:27]} {[%emt 00:01:02]} Qh5+
{[%clk 00:31:31]} {[%emt 00:00:34]} 45. Kg3 {[%clk 00:30:18]} {[%emt 00:01:38]}
g5 {[%clk 00:58:17]} {[%emt 00:03:44]} 46. Kf2 {[%clk 00:29:06]} {[%emt
00:01:41]} Qd1 {[%clk 00:58:34]} {[%emt 00:00:15]} 47. Qf1 {[%clk 00:28:24]}
{[%emt 00:01:12]} Qf3+ {[%clk 00:59:00]} {[%emt 00:00:04]} 48. Ke1 {[%clk
00:28:10]} {[%emt 00:00:43]} Qg3+ {[%clk 00:57:54]} {[%emt 00:01:34]} 49. Qf2
{[%clk 00:27:47]} {[%emt 00:00:55]} Qc7 {[%clk 00:57:57]} {[%emt 00:00:27]} 50.
Kd2 {[%clk 00:26:05]} {[%emt 00:02:11]} Qc4 {[%clk 00:58:07]} {[%emt 00:00:21]}
51. Qe2 {[%clk 00:24:57]} {[%emt 00:01:38]} Qxa2 {[%clk 00:56:33]} {[%emt
00:02:04]} 52. Qh5 {[%clk 00:24:46]} {[%emt 00:00:40]} Qb1 {[%clk 00:52:50]}
{[%emt 00:04:14]} 53. Qxh6 {[%clk 00:24:12]} {[%emt 00:01:03]} Qd3+ {[%clk
00:53:15]} {[%emt 00:00:06]} 54. Ke1 {[%clk 00:23:47]} {[%emt 00:00:54]} Qb1+
{[%clk 00:53:18]} {[%emt 00:00:27]} 55. Kf2 {[%clk 00:22:04]} {[%emt 00:02:13]}
Qc2+ {[%clk 00:53:20]} {[%emt 00:00:30]} 56. Kg3 {[%clk 00:22:12]} {[%emt
00:00:21]} Qc7+ {[%clk 00:53:02]} {[%emt 00:00:48]} 57. Kg4 {[%clk 00:21:03]}
{[%emt 00:01:38]} Qd7+ {[%clk 00:53:28]} {[%emt 00:00:06]} 58. Kxg5 {[%clk
00:20:32]} {[%emt 00:01:00]} b3 {[%clk 00:53:37]} {[%emt 00:00:21]} 59. Qg7#
{[%clk 00:20:50]} {[%emt 00:00:12]} 1-0

[Event "Swedish Chess Championship 2019: Minior-SM"]
[Site "Stiga Sports Arena, Arenatorget 1, Eskilstuna, Sweden, Sweden"]
[Date "2019.07.09"]
[Round "3.5"]
[White "Morell, Ludvig"]
[Black "Grahn, Vidar"]
[Result "1/2-1/2"]
[TimeControl "90 minutes for 40 moves + 30 minutes for the rest of the game + 30 seconds per move from move one"]
[WhiteFideId "1736779"]
[BlackFideId "1744780"]
[WhiteElo "1744"]
[BlackElo "1980"]

1. e4 {[%clk 01:30:59]} {[%emt 01:38:27]} c5 {[%clk 01:30:45]} {[%emt
00:00:16]} 2. Nf3 {[%clk 01:31:24]} {[%emt 00:00:04]} Nc6 {[%clk 01:31:11]}
{[%emt 00:00:04]} 3. d4 {[%clk 01:31:49]} {[%emt 00:00:05]} cxd4 {[%clk
01:31:37]} {[%emt 00:00:04]} 4. Nxd4 {[%clk 01:32:15]} {[%emt 00:00:04]} g6
{[%clk 01:31:59]} {[%emt 00:00:08]} 5. c4 {[%clk 01:32:23]} {[%emt 00:00:22]}
Nf6 {[%clk 01:32:24]} {[%emt 00:00:04]} 6. Nc3 {[%clk 01:32:45]} {[%emt
00:00:08]} d6 {[%clk 01:32:50]} {[%emt 00:00:05]} 7. Be3 {[%clk 01:33:05]}
{[%emt 00:00:10]} Ng4 {[%clk 01:33:14]} {[%emt 00:00:05]} 8. Qd2 {[%clk
01:24:19]} {[%emt 00:09:15]} Nxe3 {[%clk 01:33:18]} {[%emt 00:00:27]} 9. Qxe3
{[%clk 01:21:11]} {[%emt 00:03:38]} Qb6 {[%clk 01:31:55]} {[%emt 00:01:53]} 10.
Ncb5 {[%clk 01:04:43]} {[%emt 00:16:58]} Qa5+ {[%clk 01:26:49]} {[%emt
00:05:36]} 11. Qd2 {[%clk 01:02:00]} {[%emt 00:03:13]} Qxd2+ {[%clk 01:27:08]}
{[%emt 00:00:11]} 12. Kxd2 {[%clk 01:02:25]} {[%emt 00:00:05]} Bh6+ {[%clk
01:27:27]} {[%emt 00:00:11]} 13. Kc2 {[%clk 00:59:17]} {[%emt 00:03:38]} O-O
{[%clk 01:27:38]} {[%emt 00:00:19]} 14. Nxc6 {[%clk 00:53:04]} {[%emt
00:06:43]} bxc6 {[%clk 01:28:03]} {[%emt 00:00:05]} 15. Nd4 {[%clk 00:53:20]}
{[%emt 00:00:14]} Bd7 {[%clk 01:22:36]} {[%emt 00:05:58]} 16. Be2 {[%clk
00:50:01]} {[%emt 00:03:46]} Bg7 {[%clk 01:17:52]} {[%emt 00:05:16]} 17. Nf3
{[%clk 00:48:40]} {[%emt 00:01:50]} Rab8 {[%clk 01:18:05]} {[%emt 00:00:18]} 18.
Rab1 {[%clk 00:49:09]} {[%emt 00:00:02]} c5 {[%clk 01:17:14]} {[%emt 00:01:21]}
19. b3 {[%clk 00:47:57]} {[%emt 00:01:41]} a5 {[%clk 01:14:28]} {[%emt
00:03:17]} 20. a4 {[%clk 00:45:20]} {[%emt 00:03:07]} Rb4 {[%clk 01:11:36]}
{[%emt 00:03:20]} 21. Rhd1 {[%clk 00:42:11]} {[%emt 00:03:40]} Bc6 {[%clk
01:11:01]} {[%emt 00:01:05]} 22. Bd3 {[%clk 00:39:23]} {[%emt 00:03:18]} Rfb8
{[%clk 01:09:40]} {[%emt 00:01:52]} 23. Re1 {[%clk 00:35:26]} {[%emt 00:04:26]}
e6 {[%clk 01:09:23]} {[%emt 00:00:47]} 24. Nd2 {[%clk 00:29:05]} {[%emt
00:06:51]} Bd4 {[%clk 01:07:29]} {[%emt 00:02:24]} 25. f3 {[%clk 00:28:51]}
{[%emt 00:00:44]} h5 {[%clk 01:07:03]} {[%emt 00:00:56]} 26. h3 {[%clk
00:28:10]} {[%emt 00:01:11]} Be5 {[%clk 01:03:47]} {[%emt 00:03:46]} 27. Red1
{[%clk 00:27:29]} {[%emt 00:01:10]} Bf4 {[%clk 01:01:23]} {[%emt 00:02:55]} 28.
Re1 {[%clk 00:25:31]} {[%emt 00:02:28]} Bxd2 {[%clk 01:01:21]} {[%emt
00:00:32]} 29. Kxd2 {[%clk 00:24:01]} {[%emt 00:02:00]} Rxb3 {[%clk 01:00:46]}
{[%emt 00:01:05]} 30. Rxb3 {[%clk 00:21:03]} {[%emt 00:03:28]} Rxb3 {[%clk
01:01:11]} {[%emt 00:00:05]} 31. Bc2 {[%clk 00:20:42]} {[%emt 00:00:51]} Rb4
{[%clk 01:01:03]} {[%emt 00:00:37]} 32. Kc3 {[%clk 00:20:02]} {[%emt 00:01:10]}
Bxa4 {[%clk 00:59:40]} {[%emt 00:01:54]} 33. Bxa4 {[%clk 00:20:05]} {[%emt
00:00:27]} Rxa4 {[%clk 01:00:05]} {[%emt 00:00:05]} 34. Rd1 {[%clk 00:20:29]}
{[%emt 00:00:05]} Ra2 {[%clk 00:55:59]} {[%emt 00:04:36]} 35. Rxd6 {[%clk
00:19:48]} {[%emt 00:01:12]} Rxg2 {[%clk 00:56:21]} {[%emt 00:00:08]} 36. Rc6
{[%clk 00:20:13]} {[%emt 00:00:04]} Rg3 {[%clk 00:53:43]} {[%emt 00:03:09]} 37.
Rxc5 {[%clk 00:20:29]} {[%emt 00:00:13]} Rxf3+ {[%clk 00:51:45]} {[%emt
00:02:28]} 38. Kd4 {[%clk 00:20:45]} {[%emt 00:00:11]} a4 {[%clk 00:41:34]}
{[%emt 00:10:44]} 39. Ra5 {[%clk 00:20:46]} {[%emt 00:00:29]} a3 {[%clk
00:41:55]} {[%emt 00:00:09]} 40. Ra8+ {[%clk 00:20:43]} {[%emt 00:00:32]} Kg7
{[%emt 00:00:39]} 41. e5 {[%clk 00:20:58]} {[%emt 00:00:08]} Rf4+ {[%clk
00:41:32]} {[%emt 00:00:52]} 42. Kd3 {[%clk 00:20:19]} {[%emt 00:01:06]} f6
{[%clk 00:40:43]} {[%emt 00:01:21]} 43. c5 {[%clk 00:19:24]} {[%emt 00:01:25]}
fxe5 {[%clk 00:37:13]} {[%emt 00:04:00]} 44. c6 {[%clk 00:19:08]} {[%emt
00:00:45]} Rf7 {[%clk 00:36:33]} {[%emt 00:01:10]} 45. Ke4 {[%clk 00:18:43]}
{[%emt 00:00:55]} Rc7 {[%clk 00:35:03]} {[%emt 00:02:00]} 46. Rxa3 {[%clk
00:18:58]} {[%emt 00:00:16]} Rxc6 {[%clk 00:35:27]} {[%emt 00:00:06]} 47. Kxe5
{[%clk 00:19:21]} {[%emt 00:00:07]} Rb6 {[%clk 00:34:41]} {[%emt 00:01:13]} 48.
Ra7+ {[%clk 00:18:58]} {[%emt 00:00:54]} Kh6 {[%clk 00:34:41]} {[%emt
00:00:31]} 49. Ra4 {[%clk 00:16:32]} {[%emt 00:02:55]} g5 {[%clk 00:33:05]}
{[%emt 00:02:07]} 50. Kf6 {[%clk 00:08:43]} {[%emt 00:08:19]} Rb3 {[%clk
00:31:41]} {[%emt 00:01:54]} 51. h4 {[%clk 00:07:42]} {[%emt 00:01:31]} Rf3+
{[%clk 00:29:15]} {[%emt 00:02:57]} 52. Kxe6 {[%clk 00:06:36]} {[%emt
00:01:36]} g4 {[%clk 00:26:39]} {[%emt 00:03:06]} 53. Ra8 {[%clk 00:04:41]}
{[%emt 00:02:25]} Kg7 {[%clk 00:26:53]} {[%emt 00:00:15]} 54. Ra7+ {[%clk
00:04:30]} {[%emt 00:00:42]} Kg6 {[%clk 00:26:53]} {[%emt 00:00:31]} 55. Ra8
{[%clk 00:02:51]} {[%emt 00:02:08]} Rh3 {[%clk 00:26:41]} {[%emt 00:00:42]} 56.
Rf8 {[%clk 00:01:58]} {[%emt 00:01:22]} Rxh4 {[%clk 00:24:46]} {[%emt
00:02:25]} 57. Rg8 {[%clk 00:01:50]} {[%emt 00:00:38]} Kh7 {[%clk 00:24:34]}
{[%emt 00:00:43]} 58. Kf7 {[%clk 00:02:06]} {[%emt 00:00:12]} 1/2-1/2

[Event "Swedish Chess Championship 2019: Minior-SM"]
[Site "Stiga Sports Arena, Arenatorget 1, Eskilstuna, Sweden, Sweden"]
[Date "2019.07.09"]
[Round "3.6"]
[White "Johansson-Ohman, Linnea"]
[Black "Anfalt, Erik"]
[Result "1-0"]
[TimeControl "90 minutes for 40 moves + 30 minutes for the rest of the game + 30 seconds per move from move one"]
[WhiteFideId "1737260"]
[BlackFideId "1753533"]
[WhiteElo "1529"]
[BlackElo "1511"]

1. d4 {[%clk 01:30:56]} {[%emt 00:00:04]} Nf6 {[%clk 01:30:52]} {[%emt
00:00:08]} 2. c4 {[%clk 01:30:50]} {[%emt 00:00:35]} g6 {[%clk 01:31:20]}
{[%emt 00:00:02]} 3. Nf3 {[%clk 01:30:49]} {[%emt 00:00:32]} Bg7 {[%clk
01:31:30]} {[%emt 00:00:20]} 4. Nc3 {[%clk 01:30:51]} {[%emt 00:00:28]} O-O
{[%clk 01:31:37]} {[%emt 00:00:23]} 5. e3 {[%clk 01:31:05]} {[%emt 00:00:15]}
d5 {[%clk 01:31:38]} {[%emt 00:00:28]} 6. cxd5 {[%clk 01:30:45]} {[%emt
00:00:51]} Nxd5 {[%clk 01:32:06]} {[%emt 00:00:02]} 7. Bc4 {[%clk 01:29:53]}
{[%emt 00:01:23]} Be6 {[%clk 01:31:54]} {[%emt 00:00:41]} 8. Nxd5 {[%clk
01:28:14]} {[%emt 00:02:10]} Bxd5 {[%clk 01:32:22]} {[%emt 00:00:03]} 9. Be2
{[%clk 01:24:59]} {[%emt 00:03:44]} c5 {[%clk 01:27:25]} {[%emt 00:05:26]} 10.
O-O {[%clk 01:22:49]} {[%emt 00:02:40]} cxd4 {[%clk 01:27:12]} {[%emt
00:00:44]} 11. Nxd4 {[%clk 01:21:57]} {[%emt 00:01:22]} Nc6 {[%clk 01:26:38]}
{[%emt 00:01:04]} 12. Nxc6 {[%clk 01:19:25]} {[%emt 00:03:02]} Bxc6 {[%clk
01:27:03]} {[%emt 00:00:05]} 13. f3 {[%clk 01:00:57]} {[%emt 00:18:58]} Qb6
{[%clk 01:26:48]} {[%emt 00:00:45]} 14. Bc4 {[%clk 00:54:15]} {[%emt 00:07:11]}
Rac8 {[%clk 01:25:44]} {[%emt 00:01:34]} 15. Qb3 {[%clk 00:53:46]} {[%emt
00:00:59]} Qxb3 {[%clk 01:25:11]} {[%emt 00:01:04]} 16. Bxb3 {[%clk 00:53:18]}
{[%emt 00:00:58]} Rfd8 {[%clk 01:25:19]} {[%emt 00:00:22]} 17. Rf2 {[%clk
00:41:46]} {[%emt 00:12:02]} Bd5 {[%clk 01:24:58]} {[%emt 00:00:51]} 18. Bd2
{[%clk 00:38:17]} {[%emt 00:03:59]} Bxb3 {[%clk 01:24:51]} {[%emt 00:00:37]} 19.
axb3 {[%clk 00:38:31]} {[%emt 00:00:16]} Bxb2 {[%clk 01:24:02]} {[%emt
00:01:19]} 20. Rxa7 {[%clk 00:36:25]} {[%emt 00:02:36]} Rd7 {[%clk 01:20:29]}
{[%emt 00:04:03]} 21. Bb4 {[%clk 00:34:29]} {[%emt 00:02:25]} Bc1 {[%clk
01:20:00]} {[%emt 00:00:59]} 22. Re2 {[%clk 00:31:47]} {[%emt 00:03:13]} Rd3
{[%clk 01:19:49]} {[%emt 00:00:40]} 23. Kf2 {[%clk 00:31:24]} {[%emt 00:00:53]}
Rxb3 {[%clk 01:19:21]} {[%emt 00:00:58]} 24. Bxe7 {[%clk 00:31:27]} {[%emt
00:00:28]} Re8 {[%clk 01:19:12]} {[%emt 00:00:37]} 25. Bc5 {[%clk 00:30:12]}
{[%emt 00:01:47]} Bb2 {[%clk 01:18:41]} {[%emt 00:01:01]} 26. Ra2 {[%clk
00:25:30]} {[%emt 00:05:12]} Bf6 {[%clk 01:17:36]} {[%emt 00:01:32]} 27. Red2
{[%clk 00:20:49]} {[%emt 00:05:14]} b6 {[%clk 01:16:41]} {[%emt 00:01:24]} 28.
Bd4 {[%clk 00:21:10]} {[%emt 00:00:10]} Bxd4 {[%clk 01:16:39]} {[%emt
00:00:33]} 29. exd4 {[%clk 00:21:21]} {[%emt 00:00:19]} Ree3 {[%clk 01:16:47]}
{[%emt 00:00:21]} 30. d5 {[%clk 00:15:55]} {[%emt 00:05:57]} Re7 {[%clk
01:16:30]} {[%emt 00:00:45]} 31. d6 {[%clk 00:15:28]} {[%emt 00:00:58]} Rd7
{[%clk 01:16:23]} {[%emt 00:00:38]} 32. Rac2 {[%clk 00:15:44]} {[%emt
00:00:15]} f5 {[%clk 01:15:37]} {[%emt 00:01:15]} 33. Rc7 {[%clk 00:15:05]}
{[%emt 00:01:09]} Rd8 {[%clk 01:16:02]} {[%emt 00:00:05]} 34. Re7 {[%clk
00:10:40]} {[%emt 00:04:56]} Ra3 {[%clk 01:15:31]} {[%emt 00:00:59]} 35. d7
{[%clk 00:10:41]} {[%emt 00:00:31]} Raa8 {[%clk 01:15:35]} {[%emt 00:00:25]} 36.
Rde2 {[%clk 00:10:15]} {[%emt 00:00:58]} Kf8 {[%clk 01:14:59]} {[%emt
00:01:05]} 37. Rxh7 {[%clk 00:10:34]} {[%emt 00:00:11]} b5 {[%clk 01:15:02]}
{[%emt 00:00:27]} 38. Rb2 {[%clk 00:03:31]} {[%emt 00:07:33]} Rab8 {[%clk
01:15:22]} {[%emt 00:00:09]} 39. h3 {[%clk 00:02:43]} {[%emt 00:01:18]} Rb7
{[%clk 01:14:04]} {[%emt 00:01:48]} 40. Rh8+ {[%clk 00:02:10]} {[%emt
00:01:04]} Ke7 {[%clk 01:14:23]} {[%emt 00:00:08]} 41. Re2+ {[%clk 00:02:26]}
{[%emt 00:00:17]} Kd6 {[%clk 01:13:52]} {[%emt 00:01:01]} 42. Rxd8 {[%clk
00:02:46]} {[%emt 00:00:11]} b4 {[%clk 01:14:03]} {[%emt 00:00:19]} 43. Rd2+
{[%clk 00:02:33]} {[%emt 00:00:42]} Ke7 {[%clk 01:13:57]} {[%emt 00:00:36]} 44.
Re8+ {[%clk 00:02:50]} 1-0